bitfinex/quotes_SOLUSD_20241016
["timestamp","ask_amount","ask_price","bid_price","bid_amount"]
[1729040242449,6.4943,153.98,153.96,0.35461]
[1729040242650,6.494,153.99,153.96,0.35461]
[1729040247152,23.776884,154.01,153.96,0.35461]
[1729040247351,20.0,154.0,153.96,6.84931]
[1729040247537,30.270284,154.01,153.96,6.84931]
[1729040247933,6.4918,154.05,154.0,6.4934]
[1729040248247,22.434,154.07,154.0,6.4934]
[1729040249053,21.12739035,154.06,154.0,6.4934]
[1729040249240,20.0,154.06,154.0,6.4934]
[1729040249427,6.4918,154.04,154.0,6.4934]
[1729040249949,6.4918,154.04,153.97,16.2359]
[1729040250149,6.4918,154.04,153.99,6.4938]
[1729040250948,6.4918,154.04,154.0,6.4934]
[1729040251339,6.4918,154.04,153.99,6.4938]
[1729040253052,6.4922,154.03,153.99,6.4938]
[1729040255355,6.4931,154.01,153.97,22.7303]
[1729040255562,6.4931,154.01,153.97,16.2359]
[1729040255743,6.4937,154.0,153.96,6.84971]
[1729040272073,20.0,154.04,153.96,0.35461]
[1729040272451,6.4914,154.05,154.0,6.4934]
[1729040272872,22.434,154.07,153.96,16.01381]
[1729040273066,6.4913,154.06,154.01,6.4928]
[1729040273265,6.76837758,154.09,153.99,12.97956342]
[1729040273469,6.76837758,154.09,154.02,16.2308]
[1729040273470,6.4897,154.09,154.02,16.2308]
[1729040273972,6.4897,154.09,154.04,6.4917]
[1729040275163,22.1937,154.11,154.02,16.2308]
[1729040275371,6.4902,154.08,154.03,6.4921]
[1729040275879,22.1937,154.11,154.03,6.4921]
[1729040276065,6.4905,154.07,154.02,16.2308]
[1729040276455,6.4915,154.05,154.0,15.6592]
[1729040276661,6.4915,154.05,154.0,11.0492702]
[1729040276971,6.4915,154.05,153.99,16.2346]
[1729040277355,6.4915,154.05,154.0,6.4934]
[1729040277550,6.4919,154.04,154.0,6.4934]
[1729040278976,6.4919,154.04,153.99,16.2346]
[1729040279272,6.4919,154.04,153.99,22.7285]
[1729040279888,6.1039,154.06,153.98,6.4942]
[1729040280173,6.4922,154.03,153.98,6.4942]
[1729040280874,6.4932,154.01,153.96,23.08691]
[1729040283582,6.4932,154.01,153.97,6.4946]
[1729040285278,43.776884,154.05,153.96,16.59211]
[1729040285483,6.4936,154.0,153.96,16.59211]
[1729040285660,6.4936,154.0,153.96,23.08721]
[1729040285977,6.4928,154.02,153.98,6.4941]
[1729040286175,6.4923,154.03,153.98,6.4941]
[1729040287557,20.0,154.05,154.0,6.4932]
[1729040287764,22.5804,154.07,154.03,6.4922]
[1729040287965,6.4914,154.05,154.0,16.2329]
[1729040288258,6.4919,154.04,154.0,22.7263]
[1729040289670,99.19299264,154.1,153.97,45.45316342]
[1729040289671,6.4929,154.02,153.97,22.7307]
[1729040292166,6.4932,154.01,153.97,22.7307]
[1729040292373,6.4927,154.02,153.97,22.7307]
[1729040297279,6.4922,154.03,153.98,6.494]
[1729040297980,6.4922,154.03,153.99,6.4938]
[1729040307785,20.0,154.04,153.99,16.234]
[1729040308010,6.4915,154.05,153.99,16.234]
[1729040308787,6.4929,154.02,153.97,6.4944]
[1729040308988,16.5526,154.04,153.96,16.59231]
[1729040309218,6.4938,154.0,153.96,16.59231]
[1729040311813,20.0,154.03,153.96,16.59231]
[1729040312015,6.4922,154.03,153.98,6.494]
[1729040312906,6.4919,154.04,153.99,6.4936]
[1729040314797,26.4914,154.05,154.0,6.4931]
[1729040315591,26.4914,154.05,153.98,16.235]
[1729040315793,26.4914,154.05,154.01,6.493]
[1729040316013,13.1468,154.06,154.01,6.493]
[1729040316799,6.491,154.06,154.01,6.493]
[1729040316998,6.491,154.06,154.02,6.4926]
[1729040331813,6.4921,154.04,154.0,16.2331]
[1729040332131,6.4923,154.03,153.97,16.2362]
[1729040332331,6.4923,154.03,153.99,6.4937]
[1729040333112,6.4918,154.04,153.99,6.4937]
[1729040334409,23.776884,154.06,153.99,6.4937]
[1729040334609,6.4924,154.03,153.99,6.4937]
[1729040342737,6.4932,154.01,153.97,22.7306]
[1729040343829,6.4942,153.99,153.96,0.35461]
[1729040344017,43.776884,154.02,153.96,0.35461]
[1729040344220,6.4935,154.0,153.96,0.35461]
[1729040344527,20.0,154.02,153.96,0.35461]
[1729040344727,6.4932,154.01,153.96,6.84941]
[1729040345511,23.776884,154.01,153.96,0.35461]
[1729040345723,20.0,153.98,153.96,0.35461]
[1729040345944,6.4947,153.97,153.96,0.35461]
[1729040346238,26.4947,153.97,153.96,0.35461]
[1729040347936,41.9565,153.97,153.96,0.35461]
[1729040349342,65.733384,153.97,153.96,0.35461]
[1729040354438,41.9565,153.97,153.96,0.35461]
[1729040354637,26.4947,153.97,153.96,0.35461]
[1729040355349,20.0,153.97,153.96,0.35461]
[1729040355649,26.4939,153.99,153.96,0.35461]
[1729040355832,16.3701,154.01,153.96,0.35461]
[1729040356029,6.4935,154.0,153.96,6.84961]
[1729040359044,6.4935,154.0,153.96,0.35461]
[1729040365735,6.4946,153.98,153.96,0.35461]
[1729040366070,6.4947,153.97,153.96,0.35461]
[1729040367043,26.4947,153.97,153.96,0.35461]
[1729040370856,50.271584,153.97,153.96,0.35461]
[1729040372157,26.4947,153.97,153.96,0.35461]
[1729040372541,50.271584,153.97,153.96,0.35461]
[1729040376158,120.271584,153.97,153.96,0.35461]
[1729040377757,6.4965,153.93,153.88,6.4984]
[1729040378339,50.53273093,153.97,153.87,16.2468]
[1729040378539,23.776884,153.97,153.87,45.47416342]
[1729040378745,20.0,153.97,153.92,6.4964]
[1729040379371,20.0,153.97,153.91,16.2422]
[1729040379539,16.3701,154.01,153.91,28.57176342]
[1729040379869,6.0974,154.03,153.93,12.97956342]
[1729040381043,30.269684,154.02,153.96,22.7326]
[1729040381262,6.4933,154.01,153.96,22.7326]
[1729040381446,6.4935,154.0,153.96,16.2377]
[1729040385974,6.4935,154.0,153.96,22.7328]
[1729040388955,20.0,154.01,153.97,6.4944]
[1729040389152,26.493,154.01,153.97,6.4944]
[1729040391957,20.0,154.02,153.99,6.4939]
[1729040393052,20.0,154.02,153.98,6.4942]
[1729040394062,20.0,154.05,153.95,12.97956342]
[1729040394258,20.0,154.03,154.0,6.4934]
[1729040398378,20.0,154.03,153.99,6.4938]
[1729040398776,26.4923,154.03,153.99,6.4938]
[1729040399285,20.0,154.01,153.98,16.2349]
[1729040400986,20.0,154.01,153.98,22.7292]
[1729040401493,20.0,154.03,153.98,16.2349]
[1729040401670,6.4922,154.04,153.98,16.2349]
[1729040402367,6.4922,154.04,154.0,6.4932]
[1729040404282,20.0,154.05,153.97,12.97956342]
[1729040404490,20.0,154.05,154.01,6.4929]
[1729040404491,26.4915,154.05,154.01,6.4929]
[1729040407269,26.4915,154.05,154.0,16.2333]
[1729040407465,26.4915,154.05,154.0,22.7267]
[1729040407672,20.0,154.05,154.0,22.7267]
[1729040407876,6.4918,154.04,154.0,22.7267]
[1729040408391,20.0,154.05,154.02,6.4925]
[1729040408582,20.2951356,154.09,154.02,16.2312]
[1729040408890,20.2951356,154.09,154.03,6.4921]
[1729040408891,20.0,154.06,154.03,6.4921]
[1729040409275,20.0,154.06,154.04,0.70922]
[1729040410194,20.2951356,154.09,154.04,0.70922]
[1729040410396,6.4913,154.05,154.04,0.70922]
[1729040410593,50.268184,154.05,154.04,0.70922]
[1729040412003,65.282384,154.05,153.96,39.2808]
[1729040412200,6.493,154.02,153.97,6.4947]
[1729040412876,6.4933,154.01,153.96,39.2807]
[1729040413505,60.007184,154.04,153.95,6.4955]
[1729040414502,6.4942,153.99,153.94,6.496]
[1729040419502,113.776884,154.04,153.93,16.2408]
[1729040419715,6.4948,153.97,153.93,16.2408]
[1729040419882,6.4959,153.95,153.9,6.4975]
[1729040420229,6.4959,153.95,153.91,0.35461]
[1729040422701,23.776884,153.94,153.91,0.35461]
[1729040422906,6.4964,153.93,153.91,0.35461]
[1729040424286,86.2364,153.98,153.91,0.35461]
[1729040424287,6.4968,153.92,153.91,0.35461]
[1729040424497,26.4968,153.92,153.91,0.35461]
[1729040424816,50.273684,153.92,153.91,0.35461]
[1729040427108,26.4968,153.92,153.91,0.35461]
[1729040428508,70.0,153.98,153.91,0.35461]
[1729040428509,16.2364,153.98,153.91,0.35461]
[1729040428809,6.4943,153.98,153.94,6.4959]
[1729040429397,6.4939,153.99,153.94,6.4959]
[1729040429711,16.2328,154.01,153.93,16.2406]
[1729040429897,6.4951,153.97,153.93,16.2406]
[1729040430311,6.4944,153.98,153.93,22.7369]
[1729040431118,6.494,153.99,153.94,6.4959]
[1729040432527,43.776884,154.03,153.91,0.35461]
[1729040432711,6.4952,153.96,153.91,6.85151]
[1729040433016,6.4952,153.96,153.92,6.4967]
[1729040433198,6.4947,153.98,153.92,6.4967]
[1729040434004,6.4947,153.98,153.93,6.4963]
[1729040434707,6.4948,153.97,153.93,6.4963]
[1729040439425,6.4952,153.96,153.92,6.4967]
[1729040448442,22.97155328,154.02,153.92,16.2411]
[1729040448629,6.4935,154.0,153.96,6.4951]
[1729040449445,6.4935,154.0,153.95,6.4955]
[1729040452529,22.3191,154.04,153.96,16.2374]
[1729040452722,38.553,154.08,153.97,12.97956342]
[1729040452923,6.4922,154.03,153.98,6.4942]
[1729040455652,6.4917,154.05,153.99,12.97956342]
[1729040455841,38.553,154.08,154.01,12.97956342]
[1729040455842,22.3274,154.08,154.01,12.97956342]
[1729040456021,0.2951356,154.09,154.01,12.97956342]
[1729040456228,6.4901,154.08,154.03,22.7226]
[1729040456641,0.2951356,154.09,154.01,12.97956342]
[1729040456947,0.2951356,154.09,154.0,16.2335]
[1729040456948,6.4919,154.04,154.0,16.2335]
[1729040457329,6.4914,154.05,154.0,22.7269]
[1729040458252,6.4919,154.04,154.0,16.2335]
[1729040459237,22.3274,154.06,154.0,16.2335]
[1729040459420,26.4914,154.05,154.0,22.7266]
[1729040460647,6.4926,154.02,153.97,22.7315]
[1729040460824,6.4926,154.02,153.98,6.4943]
[1729040461423,6.4923,154.03,153.98,6.4943]
[1729040463446,20.0,154.05,153.97,22.7314]
[1729040463644,6.4934,154.01,153.97,22.7315]
[1729040464451,6.4927,154.02,153.97,22.7315]
[1729040465649,23.776884,154.02,153.95,15.5769]
[1729040465949,6.4936,154.0,153.95,6.4952]
[1729040471037,23.776884,154.02,153.92,0.1]
[1729040471238,26.4922,154.03,153.99,6.4937]
[1729040472665,20.0,154.05,153.98,16.2352]
[1729040472958,6.4917,154.05,153.98,16.2352]
[1729040473160,6.4917,154.05,154.0,6.4933]
[1729040474251,0.2951356,154.09,154.0,16.233]
[1729040474558,0.2951356,154.09,154.05,6.4911]
[1729040475549,0.2951356,154.09,154.08,6.4901]
[1729040476575,0.2951356,154.09,154.07,6.4903]
[1729040477065,0.2951356,154.09,154.06,22.7173]
[1729040479656,0.2951356,154.09,154.06,16.2264]
[1729040480550,0.2951356,154.09,154.05,6.491]
[1729040485975,0.2951356,154.09,154.03,22.7221]
[1729040485976,6.4905,154.08,154.03,22.7221]
[1729040486272,0.2951356,154.09,154.08,6.4901]
[1729040486574,0.2951356,154.09,154.08,19.44857215]
[1729040487470,0.2951356,154.09,154.08,19.54857215]
[1729040487659,0.2951356,154.09,154.08,19.44857215]
[1729040487847,0.2951356,154.09,154.08,19.54857215]
[1729040488047,0.2951356,154.09,154.08,19.44857215]
[1729040488751,0.2951356,154.09,154.08,19.54857215]
[1729040489169,0.2951356,154.09,154.08,43.42545615]
[1729040489468,0.2951356,154.09,154.08,19.44857215]
[1729040489676,0.2951356,154.09,154.08,19.64857215]
[1729040489968,0.2951356,154.09,154.08,26.91638534]
[1729040490161,0.2951356,154.09,154.08,50.69326934]
[1729040492365,0.2951356,154.09,154.08,6.4901]
[1729040493163,0.2951356,154.09,154.08,59.82295121]
[1729040493367,6.485,154.21,154.16,6.4864]
[1729040493674,6.485,154.21,154.17,6.4862]
[1729040494451,6.485,154.21,154.16,6.4867]
[1729040494678,21.7668,154.23,154.18,6.4858]
[1729040494679,28.2506,154.23,154.18,6.4858]
[1729040495755,6.4846,154.21,154.17,16.2149]
[1729040496145,20.0,154.22,154.17,16.2149]
[1729040496359,26.4842,154.22,154.17,22.7011]
[1729040496757,6.4847,154.21,154.17,16.2149]
[1729040497458,26.4842,154.22,154.17,22.7009]
[1729040498267,6.4848,154.21,154.17,16.2149]
[1729040501164,20.0,154.22,154.14,22.7061]
[1729040501385,6.486,154.18,154.14,16.2187]
[1729040502566,6.4863,154.17,154.12,6.4884]
[1729040502766,6.4867,154.16,154.11,22.7104]
[1729040502986,16.2112,154.22,154.12,0.1]
[1729040503286,21.7668,154.23,154.15,6.487]
[1729040503287,6.4851,154.2,154.15,6.487]
[1729040504580,20.0,154.2,154.16,6.4866]
[1729040505864,6.4847,154.21,154.16,6.4866]
[1729040506686,6.4841,154.23,154.18,6.4858]
[1729040509488,0.6226354,154.24,154.16,16.316]
[1729040509696,7.1061354,154.24,154.19,6.4853]
[1729040510472,0.6226354,154.24,154.18,16.2142]
[1729040510776,6.4843,154.22,154.18,22.7]
[1729040511370,0.6226354,154.24,154.14,6.6587]
[1729040511582,6.4847,154.21,154.16,6.4866]
[1729040513198,6.4846,154.22,154.17,6.486]
[1729040514306,6.4848,154.21,154.16,6.4866]
[1729040515295,0.6226354,154.24,154.15,16.2174]
[1729040515501,6.4846,154.22,154.17,6.486]
[1729040516994,6.4846,154.21,154.17,6.486]
[1729040521087,6.4862,154.18,154.12,16.2205]
[1729040521400,12.6694,154.21,154.16,6.4864]
[1729040522210,6.4851,154.2,154.16,6.4864]
[1729040522508,6.4851,154.2,154.15,6.487]
[1729040523210,16.1572,154.23,154.18,16.2141]
[1729040523408,6.1848,154.26,154.2,6.485]
[1729040524114,7.1060354,154.24,154.19,6.4853]
[1729040526690,7.1060354,154.24,154.2,6.4849]
[1729040527111,6.4841,154.23,154.18,22.6999]
[1729040528509,0.6226354,154.24,154.23,6.4838]
[1729040529093,0.6226354,154.24,154.19,9.12968187]
[1729040529299,0.6226354,154.24,154.21,6.4845]
[1729040533106,0.6226354,154.24,154.22,6.4841]
[1729040533713,0.6226354,154.24,154.23,6.4838]
[1729040540196,0.6226354,154.24,154.23,6.838409]
[1729040541312,0.6226354,154.24,154.23,0.354609]
[1729040542722,7.1060354,154.24,154.23,0.354609]
[1729040543528,43.776884,154.23,154.13,16.22]
[1729040543730,6.4864,154.17,154.12,15.1486]
[1729040544029,6.4864,154.17,154.11,6.4888]
[1729040545028,6.4864,154.17,154.11,5.850502]
[1729040545349,6.4872,154.15,154.1,22.7121]
[1729040547825,16.2124,154.21,154.1,22.7121]
[1729040547826,6.4867,154.16,154.1,22.7121]
[1729040550629,6.4867,154.16,154.11,6.4888]
[1729040551318,22.0438,154.17,154.12,6.4884]
[1729040551524,28.5304,154.17,154.12,6.4884]
[1729040551936,28.5304,154.17,154.11,6.4887]
[1729040555921,22.0438,154.17,154.11,6.4887]
[1729040556124,22.0438,154.17,154.07,16.2261]
[1729040556125,43.776884,154.16,154.07,16.2261]
[1729040556446,6.4892,154.11,154.07,16.2261]
[1729040556956,6.4892,154.11,154.07,22.7166]
[1729040557324,20.0,154.13,154.1,6.4891]
[1729040557525,6.4871,154.15,154.1,6.4891]
[1729040558548,6.4871,154.15,154.11,6.4888]
[1729040559529,6.4871,154.15,154.09,16.2236]
[1729040559729,6.4871,154.15,154.1,6.4892]
[1729040559950,28.5305,154.17,154.12,6.4884]
[1729040563141,43.776884,154.16,154.09,16.2236]
[1729040563345,6.4883,154.13,154.09,22.7133]
[1729040566349,6.4883,154.13,154.09,16.2236]
[1729040568564,6.488,154.13,154.09,22.713]
[1729040573545,43.776884,154.16,154.04,15.9044]
[1729040573846,6.4901,154.08,154.04,6.4917]
[1729040574946,6.4897,154.09,154.04,6.4917]
[1729040575571,6.4897,154.09,154.05,6.4912]
[1729040580674,21.595,154.11,154.04,16.229]
[1729040580861,6.4893,154.1,154.06,6.4908]
[1729040583646,28.0839,154.11,154.07,6.4904]
[1729040583973,21.595,154.11,154.07,6.4904]
[1729040584354,20.0,154.14,154.08,16.2245]
[1729040584660,21.595,154.15,154.11,6.4885]
[1729040584865,28.0823,154.15,154.11,6.4885]
[1729040585062,28.0823,154.15,154.1,16.2225]
[1729040585259,21.595,154.15,154.1,22.7116]
[1729040585461,6.4877,154.14,154.1,22.7116]
[1729040591284,28.0823,154.15,154.11,6.4886]
[1729040591472,15.1931,154.15,154.11,6.4886]
[1729040592775,21.6803,154.15,154.11,6.4886]
[1729040593580,6.4872,154.15,154.11,6.4886]
[1729040593781,20.0,154.16,154.12,6.4882]
[1729040593966,6.4866,154.17,154.12,6.4882]
[1729040594165,23.776884,154.18,154.13,6.4877]
[1729040594166,6.4859,154.18,154.13,6.4877]
[1729040597864,6.4851,154.2,154.16,6.4866]
[1729040598079,20.0,154.2,154.16,6.4866]
[1729040598286,26.4852,154.2,154.15,6.4871]
[1729040600392,26.4852,154.2,154.16,0.35461]
[1729040601084,43.776884,154.23,154.16,16.57081]
[1729040601266,6.4847,154.21,154.17,6.4863]
[1729040601461,6.4847,154.21,154.16,23.05741]
[1729040602183,6.4847,154.21,154.17,6.4862]
[1729040602578,6.4842,154.22,154.18,6.4858]
[1729040602766,20.0,154.21,154.18,6.4858]
[1729040603464,6.4842,154.22,154.17,6.4862]
[1729040604674,6.4849,154.21,154.16,23.05751]
[1729040604874,6.4853,154.2,154.16,16.57081]
[1729040605078,43.776884,154.23,154.16,16.57081]
[1729040605277,6.4855,154.19,154.16,16.57081]
[1729040607095,6.4851,154.2,154.16,16.57081]
[1729040609673,6.4863,154.17,154.16,0.35461]
[1729040609878,26.4863,154.17,154.16,0.35461]
[1729040610389,50.263184,154.17,154.16,0.35461]
[1729040612391,6.488,154.14,154.1,16.2226]
[1729040613974,43.776884,154.16,154.07,16.2259]
[1729040614181,43.776884,154.16,154.07,22.7163]
[1729040614395,6.4885,154.12,154.07,22.7163]
[1729040616702,43.776884,154.16,154.05,6.491]
[1729040616703,59.994284,154.16,154.05,6.491]
[1729040616998,90.1,154.13,154.01,16.2323]
[1729040617189,23.876884,154.12,154.01,22.7252]
[1729040617394,6.4914,154.05,154.01,15.806769]
[1729040617578,6.4918,154.04,153.99,6.4935]
[1729040618108,21.851,154.09,153.98,16.2356]
[1729040618109,70.1,154.08,153.98,16.2356]
[1729040618307,6.4935,154.0,153.95,6.4955]
[1729040618607,6.4945,153.98,153.92,22.2132]
[1729040618779,20.0,153.99,153.92,6.4964]
[1729040618979,6.4949,153.97,153.92,6.4964]
[1729040620211,20.0,154.01,153.92,6.4964]
[1729040620416,6.4943,153.98,153.92,6.4964]
[1729040622029,20.0,153.99,153.94,6.4958]
[1729040622194,20.0,153.99,153.95,6.4954]
[1729040622713,20.0,154.02,153.95,6.4954]
[1729040622896,20.0,154.0,153.95,6.4954]
[1729040623099,26.4936,154.0,153.95,6.4954]
[1729040623509,6.4939,153.99,153.94,16.2399]
[1729040624114,6.4939,153.99,153.94,22.7358]
[1729040629491,20.0,154.0,153.94,16.2399]
[1729040629698,26.4935,154.0,153.94,16.2399]
[1729040630814,20.0,154.0,153.94,16.2399]
[1729040631018,6.4931,154.01,153.97,6.4947]
[1729040631221,6.4914,154.05,154.0,6.4933]
[1729040631522,22.1547,154.07,153.95,15.476]
[1729040631523,6.4918,154.04,153.99,6.4938]
[1729040632920,20.0,154.03,153.99,6.4938]
[1729040633114,20.0,154.04,154.0,6.4933]
[1729040634225,6.492,154.04,153.99,6.4939]
[1729040634422,20.0,154.03,153.99,6.4939]
[1729040637424,6.493,154.01,153.96,6.4948]
[1729040637723,6.4927,154.02,153.97,6.4946]
[1729040637897,6.4927,154.02,153.95,31.7149]
[1729040638102,6.4927,154.02,153.98,6.4943]
[1729040639230,6.4922,154.03,153.98,6.4943]
[1729040639418,6.4918,154.04,154.0,6.4934]
[1729040639603,20.0,154.03,154.0,6.4934]
[1729040640228,20.0,154.04,153.97,16.2363]
[1729040640403,6.4923,154.03,153.99,6.4938]
[1729040641412,23.776884,154.03,153.97,16.2363]
[1729040641624,6.4931,154.01,153.97,22.7309]
[1729040646210,26.4927,154.02,153.98,6.4941]
[1729040646429,6.4935,154.0,153.97,16.2363]
[1729040646734,6.4931,154.01,153.97,22.7309]
[1729040648528,22.2547,154.07,153.97,16.2363]
[1729040648529,20.0,154.06,153.97,16.2363]
[1729040648727,26.4921,154.04,153.99,6.4935]
[1729040649026,6.4928,154.02,153.97,16.2363]
[1729040650424,6.4928,154.02,153.97,22.731]
[1729040652406,20.0,154.04,153.97,16.2363]
[1729040652610,20.0,154.04,153.94,32.4799]
[1729040652611,6.4935,154.0,153.96,6.4951]
[1729040655230,20.0,154.04,153.98,6.4942]
[1729040655743,20.0,154.02,153.98,6.4942]
[1729040657032,23.776884,154.04,153.96,16.2376]
[1729040657223,20.0,154.03,153.96,16.2376]
[1729040657425,20.0,154.01,153.96,16.2376]
[1729040658634,6.4935,154.0,153.96,22.7326]
[1729040659714,6.494,153.99,153.96,16.2376]
[1729040660325,6.494,153.99,153.97,0.35461]
[1729040661632,35.0161,154.01,153.97,0.35461]
[1729040661831,6.4936,154.0,153.97,0.35461]
[1729040664633,20.0,154.01,153.97,0.35461]
[1729040664829,26.4931,154.01,153.97,0.35461]
[1729040669629,20.0,154.03,153.97,6.84921]
[1729040669831,20.0,154.01,153.97,6.84921]
[1729040670443,6.4931,154.01,153.97,6.84921]
[1729040672252,6.4935,154.0,153.97,0.35461]
[1729040676652,20.0,153.99,153.97,0.35461]
[1729040676843,20.0,153.99,153.91,28.45021237]
[1729040676844,6.4964,153.93,153.88,6.4981]
[1729040678155,6.4964,153.93,153.89,6.498]
[1729040679355,60.013184,153.98,153.9,16.2437]
[1729040679356,20.0,153.97,153.9,16.2437]
[1729040680248,20.0,153.97,153.91,6.4969]
[1729040680249,20.0,153.95,153.91,6.4969]
[1729040680940,20.0,153.97,153.91,6.4969]
[1729040681139,6.4956,153.95,153.91,6.4969]
[1729040684660,20.0,153.97,153.92,6.4968]
[1729040684661,26.495,153.97,153.92,6.4968]
[1729040685538,26.495,153.97,153.9,16.2437]
[1729040685738,26.495,153.97,153.93,6.4963]
[1729040686456,20.0,153.95,153.91,6.4969]
[1729040688637,20.0,153.97,153.92,16.2417]
[1729040688833,6.4945,153.98,153.93,6.4962]
[1729040690959,6.4945,153.98,153.92,16.2417]
[1729040690960,6.4945,153.98,153.94,6.4959]
[1729040691145,20.0,153.99,153.94,16.2395]
[1729040691348,20.0,153.99,153.96,6.495]
[1729040691864,20.0,154.0,153.96,6.4948]
[1729040694661,6.4948,153.97,153.91,16.2429]
[1729040694865,43.776884,154.01,153.91,16.2429]
[1729040695163,6.4961,153.94,153.89,15.0384]
[1729040695372,6.4965,153.93,153.89,15.0384]
[1729040696071,6.4965,153.93,153.88,16.246]
[1729040696962,6.4961,153.94,153.88,16.246]
[1729040697562,6.4961,153.94,153.88,22.7444]
[1729040699868,38.4187,153.98,153.9,6.4974]
[1729040700066,6.4957,153.95,153.88,16.246]
[1729040700239,6.4957,153.95,153.89,6.498]
[1729040700439,6.4957,153.95,153.9,6.4975]
[1729040704375,6.4948,153.97,153.93,22.7369]
[1729040707671,6.4952,153.96,153.93,16.2406]
[1729040710075,20.0,153.98,153.9,16.2436]
[1729040710382,6.5207,153.95,153.87,16.2469]
[1729040710556,6.5207,153.95,153.86,15.0384]
[1729040710763,6.4989,153.88,153.84,16.2505]
[1729040711068,6.4989,153.88,153.83,6.5003]
[1729040711265,15.6615,153.91,153.81,16.2534]
[1729040711466,23.776884,153.89,153.81,16.2534]
[1729040711656,6.4999,153.85,153.81,15.89879]
[1729040713063,6.4999,153.85,153.8,6.5016]
[1729040715172,6.5243,153.88,153.79,6.5023]
[1729040715477,6.5012,153.82,153.78,16.2568]
[1729040715686,15.8438,153.84,153.74,16.3759]
[1729040715983,15.8438,153.84,153.74,39.1403]
[1729040715984,20.0,153.83,153.74,39.1403]
[1729040716285,6.5032,153.77,153.72,6.5052]
[1729040717668,6.3292,153.79,153.71,16.2641]
[1729040717669,6.5038,153.76,153.71,16.2641]
[1729040720089,6.5038,153.76,153.71,22.7697]
[1729040720298,6.5038,153.76,153.72,0.35461]
[1729040721174,6.5049,153.73,153.72,0.35461]
[1729040721564,26.5049,153.73,153.72,0.35461]
[1729040722567,50.281784,153.73,153.72,0.35461]
[1729040723581,56.610984,153.73,153.72,0.35461]
[1729040723769,72.454784,153.73,153.72,0.35461]
[1729040723965,6.5057,153.71,153.7,0.6226354]
[1729040724178,6.5083,153.65,153.6,16.2749]
[1729040724998,6.5083,153.65,153.6,22.7851]
[1729040725171,43.876884,153.7,153.6,16.2749]
[1729040725372,22.173,153.66,153.55,16.9030354]
[1729040725573,43.776884,153.65,153.55,16.9030354]
[1729040725992,6.5091,153.64,153.55,0.6226354]
[1729040726198,20.0,153.65,153.6,6.51]
[1729040727401,20.0,153.65,153.57,16.2783]
[1729040727898,20.0,153.65,153.6,22.7856]
[1729040727899,26.5083,153.65,153.6,22.7856]
[1729040728503,20.0,153.65,153.61,6.5098]
[1729040728681,20.0,153.67,153.62,6.5091]
[1729040728980,6.507,153.68,153.63,6.509]
[1729040729402,22.173,153.7,153.63,6.509]
[1729040729581,6.5066,153.69,153.63,6.509]
[1729040729913,6.5066,153.69,153.62,16.273]
[1729040730215,22.173,153.7,153.65,6.5082]
[1729040730372,20.0,153.69,153.66,6.5075]
[1729040730577,22.173,153.74,153.66,16.2688]
[1729040730978,22.173,153.74,153.69,6.5064]
[1729040731192,6.5037,153.76,153.71,6.5056]
[1729040731598,22.173,153.78,153.68,16.2667]
[1729040731599,6.504,153.75,153.69,6.5061]
[1729040731992,6.5035,153.77,153.7,16.2644]